fUST/lending_fUST_20250109
["ID","MTS","AMOUNT","RATE_DAILY","PERIOD"]
[348219730,1736398233039,-500.0,0.00019177,2]
[348219731,1736398233050,-500.0,0.00019177,2]
[348219732,1736398233059,-326.13288724,0.00019177,2]
[348219733,1736398233069,-499.99999999,0.00019177,2]
[348219734,1736398233078,-503.98189928,0.00019178,2]
[348219735,1736398233088,-500.0,0.00019178,2]
[348219736,1736398233098,-502.26052569,0.00019178,2]
[348219737,1736398233107,-496.99830238,0.00019178,2]
[348219738,1736398233116,-267.80898274,0.00019178,2]
[348219739,1736398233126,-500.0,0.00019178,2]
[348219740,1736398233135,-516.06098103,0.00019178,2]
[348219741,1736398233144,-509.06019332,0.00019178,2]
[348219742,1736398233153,-500.0,0.00019178,2]
[348219743,1736398233163,-500.0,0.00019178,2]
[348219744,1736398233172,-501.28571281,0.00019178,2]
[348219745,1736398233182,-500.0,0.00019178,2]
[348219746,1736398233192,-500.0,0.00019178,2]
[348219747,1736398233201,-500.0,0.00019178,2]
[348219748,1736398233211,-500.0,0.00019178,2]
[348219749,1736398233220,-500.0,0.00019178,2]
[348219750,1736398233229,-500.0,0.00019178,2]
[348219751,1736398233239,-500.0,0.00019178,2]
[348219752,1736398233248,-500.0,0.00019178,2]
[348219753,1736398233258,-500.0,0.00019178,2]
[348219754,1736398233269,-500.0,0.00019178,2]
[348219755,1736398233279,-505.7068545,0.00019178,2]
[348219756,1736398233288,-629.27145782,0.00019178,2]
[348219757,1736398233297,-503.15065976,0.00019178,2]
[348219758,1736398233307,-502.43037145,0.00019178,2]
[348219759,1736398233316,-500.0,0.00019178,2]
[348219760,1736398233326,-508.86903769,0.00019178,2]
[348219761,1736398233335,-500.0,0.00019178,2]
[348219762,1736398233345,-500.0,0.00019178,2]
[348219763,1736398233354,-444.26950903,0.00019178,2]
[348219764,1736398233364,-503.21133798,0.00019178,2]
[348219765,1736398233374,-505.68974075,0.00019178,2]
[348219766,1736398233384,-500.0,0.00019178,2]
[348219767,1736398233394,-500.0,0.00019178,2]
[348219768,1736398233403,-500.0,0.00019178,2]
[348219769,1736398233413,-505.87792817,0.00019178,2]
[348219770,1736398233423,-514.28867028,0.00019178,2]
[348219771,1736398233433,-500.0,0.00019178,2]
[348219772,1736398233443,-500.0,0.00019178,2]
[348219773,1736398233452,-500.0,0.00019178,2]
[348219774,1736398233462,-500.0,0.00019178,2]
[348219775,1736398233471,-500.0,0.00019178,2]
[348219776,1736398233481,-500.0,0.00019178,2]
[348219777,1736398233490,-500.0,0.00019178,2]
[348219778,1736398233503,-500.0,0.00019178,2]
[348219779,1736398233513,-508.14245107,0.00019178,2]
[348219780,1736398233523,-500.0,0.00019178,2]
[348219781,1736398233532,-504.35759841,0.00019178,2]
[348219782,1736398233543,-500.0,0.00019178,2]
[348219783,1736398233552,-500.0,0.00019178,2]
[348219784,1736398233562,-203.1090632,0.00019178,2]
[348219785,1736398233572,-500.0,0.00019178,2]
[348219786,1736398233583,-500.0,0.00019178,2]
[348219787,1736398233593,-500.0,0.00019178,2]
[348219788,1736398233603,-500.0,0.00019178,2]
[348219789,1736398233614,-500.0,0.00019178,2]
[348219790,1736398233624,-500.0,0.00019178,2]
[348219791,1736398233634,-267.4405841,0.00019178,2]
[348219792,1736398233724,-232.5594159,0.00019178,2]
[348219793,1736398233734,-500.0,0.00019178,2]
[348219794,1736398233743,-500.0,0.00019178,2]
[348219795,1736398233752,-423.7647781,0.00019178,2]
[348219796,1736398233764,-22.70452213,0.00019178,2]
[348219797,1736398233774,-500.0,0.00019178,2]
[348219798,1736398233783,-500.0,0.00019178,2]
[348219799,1736398233793,-500.0,0.00019178,2]
[348219800,1736398233803,-511.53469593,0.00019178,2]
[348219801,1736398233812,-407.3583208,0.00019178,2]
[348219802,1736398233822,-500.0,0.00019178,2]
[348219803,1736398233831,-500.0,0.00019178,2]
[348219804,1736398233842,-500.0,0.00019178,2]
[348219805,1736398233851,-107.36539662,0.00019178,2]
[348219806,1736398233874,-392.63460338,0.00019178,2]
[348219807,1736398233884,-500.0,0.00019178,2]
[348219808,1736398233894,-500.0,0.00019178,2]
[348219809,1736398233903,-500.0,0.00019178,2]
[348219810,1736398233913,-500.0,0.00019178,2]
[348219811,1736398233923,-500.0,0.00019178,2]
[348219812,1736398233932,-500.0,0.00019178,2]
[348219813,1736398233942,-500.0,0.00019178,2]
[348219814,1736398233951,-569.67097213,0.00019178,2]
[348219815,1736398233961,-500.0,0.00019178,2]
[348219816,1736398233971,-500.0,0.00019178,2]
[348219817,1736398233981,-500.0,0.00019178,2]
[348219818,1736398233991,-500.0,0.00019178,2]
[348219819,1736398234000,-500.0,0.00019178,2]
[348219820,1736398234010,-511.46552589,0.00019178,2]
[348219821,1736398234019,-52.47164884,0.00019178,2]
[348219824,1736398238633,-548.49985581,0.00019178,2]
[348219825,1736398238643,-500.0,0.00019178,2]
[348219826,1736398238653,-500.0,0.00019178,2]
[348219827,1736398238662,-500.0,0.00019178,2]
[348219828,1736398238672,-500.0,0.00019178,2]
[348219829,1736398238682,-623.85101649,0.00019178,2]
[348219830,1736398238691,-500.0,0.00019178,2]
[348219831,1736398238700,-500.0,0.00019178,2]
[348219832,1736398238710,-489.6491277,0.00019178,2]
[348219833,1736398238722,-10.3508723,0.00019178,2]
[348219834,1736398238732,-500.0,0.00019178,2]
[348219835,1736398238742,-500.0,0.00019178,2]
[348219836,1736398238751,-500.0,0.00019178,2]
[348219837,1736398238760,-500.0,0.00019178,2]
[348219838,1736398238773,-500.0,0.00019178,2]
[348219839,1736398238783,-500.0,0.00019178,2]
[348219840,1736398238792,-201.8371736,0.00019178,2]
[348219843,1736398238903,-500.0,0.00019178,2]
[348219844,1736398238914,-500.0,0.00019178,2]
[348219845,1736398238923,-500.0,0.00019178,2]
[348219846,1736398238933,-500.0,0.00019178,2]
[348219847,1736398238943,-516.87812123,0.00019178,2]
[348219848,1736398238953,-500.0,0.00019178,2]
[348219849,1736398238963,-500.0,0.00019178,2]
[348219850,1736398238972,-500.0,0.00019178,2]
[348219851,1736398238981,-500.0,0.00019178,2]
[348219852,1736398238991,-503.87863761,0.00019178,2]
[348219853,1736398239000,-500.0,0.00019178,2]
[348219854,1736398239010,-501.92608341,0.00019178,2]
[348219855,1736398239019,-500.0,0.00019178,2]
[348219856,1736398239029,-500.0,0.00019178,2]
[348219857,1736398239038,-500.0,0.00019178,2]
[348219858,1736398239048,-500.0,0.00019178,2]
[348219859,1736398239058,-500.0,0.00019178,2]
[348219860,1736398239067,-503.54211083,0.00019178,2]
[348219861,1736398239077,-500.0,0.00019178,2]
[348219862,1736398239087,-502.83255463,0.00019178,2]
[348219863,1736398239096,-500.0,0.00019178,2]
[348219864,1736398239106,-500.0,0.00019178,2]
[348219865,1736398239115,-500.0,0.00019178,2]
[348219866,1736398239125,-502.49763406,0.00019178,2]
[348219867,1736398239135,-500.0,0.00019178,2]
[348219868,1736398239144,-409.93203387,0.00019178,2]
[348219869,1736398239153,-500.0,0.00019178,2]
[348219870,1736398239162,-500.0,0.00019178,2]
[348219871,1736398239171,-500.0,0.00019178,2]
[348219872,1736398239181,-500.0,0.00019178,2]
[348219873,1736398239191,-500.0,0.00019178,2]
[348219874,1736398239200,-500.0,0.00019178,2]
[348219875,1736398239210,-500.0,0.00019178,2]
[348219876,1736398239219,-500.0,0.00019178,2]
[348219877,1736398239229,-500.0,0.00019178,2]
[348219878,1736398239240,-260.68640293,0.00019178,2]
[348219879,1736398239250,-500.0,0.00019178,2]
[348219880,1736398239259,-567.648933,0.00019178,2]
[348219881,1736398239269,-500.0,0.00019178,2]
[348219882,1736398239279,-500.0,0.00019178,2]
[348219883,1736398239289,-500.0,0.00019178,2]
[348219884,1736398239300,-500.0,0.00019178,2]
[348219885,1736398239309,-204.35714023,0.00019178,2]
[348219886,1736398239318,-500.0,0.00019178,2]
[348219887,1736398239328,-500.22081866,0.00019178,2]
[348219888,1736398239338,-500.0,0.00019178,2]
[348219889,1736398239348,-150.53254386,0.00019178,2]
[348219890,1736398239358,-502.08061408,0.00019178,2]
[348219891,1736398239368,-500.0,0.00019178,2]
[348219892,1736398239377,-504.34702426,0.00019178,2]
[348219893,1736398239387,-502.15133678,0.00019178,2]
[348219894,1736398239397,-500.0,0.00019178,2]
[348219895,1736398239407,-500.0,0.00019178,2]
[348219896,1736398239417,-31632.1,0.00019178,2]
[348219897,1736398239427,-501.66526083,0.00019178,2]
[348219898,1736398239438,-500.0,0.00019178,2]
[348219899,1736398239447,-500.0,0.00019178,2]
[348219900,1736398239457,-500.0,0.00019178,2]
[348219901,1736398239468,-500.0,0.00019178,2]
[348219902,1736398239478,-500.0,0.00019178,2]
[348219903,1736398239488,-500.0,0.00019178,2]
[348219904,1736398239501,-200.0,0.00019178,2]
[348219905,1736398239512,-500.0,0.00019178,2]
[348219906,1736398239521,-500.0,0.00019178,2]
[348219907,1736398239531,-500.0,0.00019178,2]
[348219908,1736398239541,-500.0,0.00019178,2]
[348219909,1736398239551,-500.0,0.00019178,2]
[348219910,1736398239561,-500.0,0.00019178,2]
[348219911,1736398239571,-500.0,0.00019178,2]
[348219912,1736398239580,-1307.86,0.00019178,2]
[348219913,1736398239590,-431.57,0.00019178,2]
[348219914,1736398239599,-502.2333201,0.00019178,2]
[348219915,1736398239609,-500.0,0.00019178,2]
[348219916,1736398239618,-505.09627579,0.00019178,2]
[348219917,1736398239627,-500.0,0.00019178,2]
[348219918,1736398239637,-500.0,0.00019178,2]
[348219919,1736398239647,-500.0,0.00019178,2]
[348219920,1736398239656,-500.0,0.00019178,2]
[348219921,1736398239667,-500.0,0.00019178,2]
[348219922,1736398239677,-398.14125834,0.00019178,2]
[348219923,1736398239688,-500.0,0.00019178,2]
[348219924,1736398239698,-202.40165951,0.00019178,2]
[348219925,1736398239708,-500.0,0.00019178,2]
[348219926,1736398239718,-513.80674171,0.00019178,2]
[348219927,1736398239727,-500.0,0.00019178,2]
[348219928,1736398239737,-500.0,0.00019178,2]
[348219929,1736398239747,-500.0,0.00019178,2]
[348219930,1736398239756,-500.0,0.00019178,2]
[348219931,1736398239766,-503.09808444,0.00019178,2]
[348219932,1736398239776,-500.0,0.00019178,2]
[348219933,1736398239785,-500.0,0.00019178,2]
[348219934,1736398239795,-500.0,0.00019178,2]
[348219935,1736398239804,-500.0,0.00019178,2]
[348219936,1736398239814,-500.0,0.00019178,2]
[348219937,1736398239823,-500.0,0.00019178,2]
[348219938,1736398239833,-500.0,0.00019178,2]
[348219939,1736398239842,-7261.61890555,0.00019178,2]
[348219940,1736398239860,-648.04109445,0.00019178,2]
[348219941,1736398239870,-547.52,0.00019178,2]
[348219942,1736398239879,-500.0,0.00019178,2]
[348219943,1736398239888,-500.0,0.00019178,2]
[348219944,1736398239898,-500.0,0.00019178,2]
[348219945,1736398239907,-505.15230869,0.00019178,2]
[348219946,1736398239916,-500.0,0.00019178,2]
[348219947,1736398239926,-500.0,0.00019178,2]
[348219948,1736398239935,-500.0,0.00019178,2]
[348219949,1736398239945,-500.0,0.00019178,2]
[348219950,1736398239955,-500.0,0.00019178,2]
[348219951,1736398239965,-500.0,0.00019178,2]
[348219952,1736398239975,-413.36720181,0.00019178,2]
[348219953,1736398239984,-500.0,0.00019178,2]
[348219954,1736398239994,-500.0,0.00019178,2]
[348219955,1736398240004,-500.0,0.00019178,2]
[348219956,1736398240014,-500.0,0.00019178,2]
[348219957,1736398240023,-500.0,0.00019178,2]
[348219958,1736398240033,-500.0,0.00019178,2]
[348219959,1736398240042,-511.51129105,0.00019178,2]
[348219960,1736398240052,-500.0,0.00019178,2]
[348219961,1736398240062,-505.48876945,0.00019178,2]
[348219962,1736398240071,-586.98,0.00019178,2]
[348219963,1736398240081,-500.0,0.00019178,2]
[348219964,1736398240091,-500.0,0.00019178,2]
[348219965,1736398240100,-500.0,0.00019178,2]
[348219966,1736398240109,-500.0,0.00019178,2]
[348219967,1736398240119,-500.0,0.00019178,2]
[348219968,1736398240128,-506.57191923,0.00019178,2]
[348219969,1736398240137,-639.78,0.00019178,2]
[348219970,1736398240147,-506.56590623,0.00019178,2]
[348219971,1736398240156,-500.0,0.00019178,2]
[348219972,1736398240166,-738.42,0.00019178,2]
[348219973,1736398240175,-505.84512594,0.00019178,2]
[348219974,1736398240185,-500.0,0.00019178,2]
[348219975,1736398240196,-500.0,0.00019178,2]
[348219976,1736398240206,-500.0,0.00019178,2]
[348219977,1736398240216,-500.0,0.00019178,2]
[348219978,1736398240226,-500.0,0.00019178,2]
[348219979,1736398240236,-500.0,0.00019178,2]
[348219980,1736398240245,-221.7248755,0.00019178,2]
[348219981,1736398240257,-278.2751245,0.00019178,2]
[348219982,1736398240267,-514.91244268,0.00019178,2]
[348219983,1736398240788,-0.50773074,0.00019178,2]
[348219984,1736398240798,-500.0,0.00019178,2]
[348219985,1736398240808,-500.0,0.00019178,2]
[348219986,1736398240818,-500.0,0.00019178,2]
[348219987,1736398240828,-505.00662827,0.00019178,2]
[348219988,1736398240838,-500.0,0.00019178,2]
[348219989,1736398240849,-500.0,0.00019178,2]
[348219990,1736398240858,-508.89810876,0.00019178,2]
[348219991,1736398240868,-500.0,0.00019178,2]
[348219992,1736398240877,-598.99,0.00019178,2]
[348219993,1736398240887,-504.31541317,0.00019178,2]
[348219994,1736398240896,-726.77,0.00019178,2]
[348219995,1736398240906,-871.65,0.00019178,2]
[348219996,1736398240915,-1823.74,0.00019178,2]
[348219997,1736398240925,-500.0,0.00019178,2]
[348219998,1736398240934,-500.0,0.00019178,2]
[348219999,1736398240943,-346.94668,0.00019352,2]
[348220000,1736398240953,-346.94668,0.00019352,2]
[348220001,1736398240962,-151.0,0.00019352,2]
[348220002,1736398240971,-1364.82874193,0.00019352,2]
[348220003,1736398240980,-500.0,0.00019451,3]
[348220004,1736398240990,-500.0,0.00019451,3]
[348220005,1736398240999,-500.0,0.00019451,3]
[348220006,1736398241009,-352.33,0.00019451,3]
[348220007,1736398241018,-500.0,0.00019452,3]
[348220008,1736398241027,-503.04208348,0.00019452,3]
[348220009,1736398241036,-417.37005174,0.00019452,3]
[348220010,1736398241047,-346.94668,0.00019452,2]
[348220011,1736398241055,-346.94668,0.00019452,2]
[348220012,1736398241065,-346.94668,0.00019452,2]
[348220013,1736398241074,-346.94668,0.00019452,2]
[348220014,1736398241083,-500.0,0.00019452,3]
[348220015,1736398241093,-506.07222546,0.00019452,3]
[348220016,1736398241102,-506.35461972,0.00019452,3]
[348220017,1736398241110,-495.66549205,0.00019452,3]
[348220018,1736398241119,-452.84539529,0.00019452,3]
[348220019,1736398241128,-504.64501277,0.00019452,3]
[348220020,1736398241137,-500.0,0.00019452,3]
[348220021,1736398241147,-500.0,0.00019452,3]
[348220022,1736398241156,-519.09122383,0.00019452,3]
[348220023,1736398241165,-583.47919748,0.00019452,3]
[348220024,1736398241174,-163.96973133,0.00019452,3]
[348220025,1736398241183,-501.93324559,0.00019452,3]
[348220026,1736398241192,-500.0,0.00019452,3]
[348220027,1736398241202,-500.0,0.00019452,3]
[348220028,1736398241211,-151.0,0.00019452,2]
[348220029,1736398241220,-151.0,0.00019452,2]
[348220030,1736398241230,-500.0,0.00019452,3]
[348220031,1736398241240,-500.0,0.00019452,3]
[348220032,1736398241249,-500.0,0.00019452,3]
[348220033,1736398241259,-411.86453987,0.00019452,3]
[348220034,1736398241268,-500.0,0.00019452,3]
[348220035,1736398241278,-500.0,0.00019452,3]
[348220036,1736398241287,-500.0,0.00019452,3]
[348220037,1736398241296,-500.0,0.00019452,3]
[348220038,1736398241306,-500.0,0.00019452,3]
[348220039,1736398241315,-500.0,0.00019452,3]
[348220040,1736398241325,-500.0,0.00019452,3]
[348220041,1736398241335,-500.0,0.00019452,3]
[348220042,1736398241346,-500.0,0.00019452,3]
[348220043,1736398241355,-500.0,0.00019452,3]
[348220044,1736398241365,-500.0,0.00019452,3]
[348220045,1736398241374,-500.0,0.00019452,3]
[348220046,1736398241383,-500.0,0.00019452,3]
[348220047,1736398241393,-500.0,0.00019452,3]
[348220048,1736398241402,-500.0,0.00019452,3]
[348220049,1736398241412,-242.26,0.00019452,3]
[348220050,1736398241421,-500.0,0.00019452,3]
[348220051,1736398241431,-500.0,0.00019452,3]
[348220052,1736398241441,-501.82657866,0.00019452,3]
[348220053,1736398241450,-500.0,0.00019452,3]
[348220054,1736398241460,-425.88883112,0.00019452,3]
[348220055,1736398241474,-502.19428558,0.00019452,3]
[348220056,1736398241484,-500.0,0.00019452,3]
[348220057,1736398241494,-508.36117078,0.00019452,3]
[348220058,1736398241508,-500.0,0.00019452,3]
[348220059,1736398241517,-500.92848899,0.00019452,3]
[348220060,1736398241526,-500.0,0.00019452,3]
[348220061,1736398241535,-500.0,0.00019452,3]
[348220062,1736398241546,-500.0,0.00019452,3]
[348220063,1736398241555,-500.0,0.00019452,3]
[348220064,1736398241565,-500.0,0.00019452,3]
[348220065,1736398241575,-500.0,0.00019452,3]
[348220066,1736398241584,-505.03022344,0.00019452,3]
[348220067,1736398241594,-504.47316827,0.00019452,3]
[348220068,1736398241604,-505.01183006,0.00019452,3]
[348220069,1736398241614,-500.0,0.00019452,3]
[348220070,1736398241623,-500.0,0.00019452,3]
[348220071,1736398241633,-500.0,0.00019452,3]
[348220072,1736398241642,-500.0,0.00019452,3]
[348220073,1736398241651,-504.87583661,0.00019452,3]
[348220074,1736398241661,-546.04620321,0.00019452,3]
[348220075,1736398241671,-500.0,0.00019452,3]
[348220076,1736398241681,-31632.1,0.00019452,2]
[348220077,1736398241771,-637.82,0.00019452,3]
[348220078,1736398241781,-500.0,0.00019452,3]
[348220079,1736398241790,-500.0,0.00019452,3]
[348220080,1736398241799,-500.0,0.00019452,3]
[348220081,1736398241808,-500.0,0.00019452,3]
[348220082,1736398241817,-200.0,0.00019452,3]
[348220083,1736398241827,-502.62853385,0.00019452,3]
[348220084,1736398241836,-500.0,0.00019452,3]
[348220085,1736398241846,-500.0,0.00019452,3]
[348220086,1736398241856,-500.0,0.00019452,3]
[348220087,1736398241865,-500.0,0.00019452,3]
[348220088,1736398241875,-1307.86,0.00019452,3]
[348220089,1736398241885,-500.0,0.00019452,3]
[348220090,1736398241894,-500.0,0.00019452,3]
[348220091,1736398241904,-500.0,0.00019452,3]
[348220092,1736398241913,-500.0,0.00019452,3]
[348220093,1736398241924,-500.0,0.00019452,3]
[348220094,1736398241933,-242.85073924,0.00019452,3]
[348220095,1736398241943,-500.0,0.00019452,3]
[348220096,1736398241952,-500.0,0.00019452,3]
[348220097,1736398241961,-500.0,0.00019452,3]
[348220098,1736398241970,-500.0,0.00019452,3]
[348220099,1736398241979,-503.90252617,0.00019452,3]
[348220100,1736398241989,-500.0,0.00019452,3]
[348220101,1736398241998,-500.0,0.00019452,3]
[348220102,1736398242008,-503.07504202,0.00019452,3]
[348220103,1736398242017,-500.0,0.00019452,3]
[348220104,1736398242027,-7909.66,0.00019452,3]
[348220105,1736398242036,-547.52,0.00019452,3]
[348220106,1736398242045,-500.0,0.00019452,3]
[348220107,1736398242055,-500.0,0.00019452,3]
[348220108,1736398242066,-144.37343962,0.00019452,3]
[348222855,1736398503146,208.04290424,0.00015001,2]
[348222856,1736399121055,165.611717,0.00013973,2]
[348222857,1736399130136,-485.70134095,0.00018185,2]
[348222858,1736399137089,-311.60469498,0.00018185,2]
[348222859,1736399137111,-134.49765923,0.00018285,2]
[348222861,1736399250122,-539.63464506,0.00018185,2]
[348222862,1736399253175,-3397.75232851,0.00018185,2]
[348222863,1736399253197,-166.0,0.00018285,2]
[348222864,1736399253222,-752.38503048,0.00018286,2]
[348222865,1736399346107,-776.35443343,0.00018085,2]
[348222866,1736399346128,-10214.37355252,0.00018286,2]
[348222867,1736399346149,-2547.33900326,0.00018355,2]
[348222892,1736399431961,-398.87657509,0.00018085,2]
[348222894,1736399431970,-10083.0,0.0001835,2]
[348222896,1736399431979,-1698.69476284,0.00018355,2]
[348222898,1736399431989,-416.46791937,0.000189,2]
[348222900,1736399431998,-313.18781855,0.00019,2]
[348222902,1736399432008,-500.0,0.00019173,2]
[348222904,1736399432017,-500.0,0.00019177,2]
[348222906,1736399432027,-500.0,0.00019177,2]
[348222908,1736399432036,-163.42307039,0.00019177,2]
[348222910,1736399432045,-359.36733831,0.00019177,2]
[348222912,1736399432054,-410.63168222,0.00019177,2]
[348222914,1736399432063,-500.0,0.00019177,2]
[348222916,1736399432072,-500.0,0.00019177,2]
[348222918,1736399432081,-500.0,0.00019177,2]
[348222920,1736399432090,-500.0,0.00019177,2]
[348222922,1736399432100,-500.0,0.00019177,2]
[348222924,1736399432110,-234.967,0.00019177,2]
[348222926,1736399432119,-262.13473958,0.00019177,2]
[348222928,1736399432129,-203.07305644,0.00019177,2]
[348222930,1736399432138,-500.0,0.00019178,2]
[348222932,1736399432149,-501.72011896,0.00019178,2]
[348222934,1736399432158,-503.45161485,0.00019178,2]
[348222936,1736399432166,-500.0,0.00019178,2]
[348222938,1736399432174,-502.17889679,0.00019178,2]
[348222940,1736399432183,-503.98216805,0.00019178,2]
[348222942,1736399432192,-505.86532918,0.00019178,2]
[348222944,1736399432201,-503.89914711,0.00019178,2]
[348222946,1736399432211,-502.47932697,0.00019178,2]
[348222948,1736399432220,-504.00614542,0.00019178,2]
[348222950,1736399432229,-500.0,0.00019178,2]
[348222952,1736399432238,-500.0,0.00019178,2]
[348222954,1736399432247,-505.08252791,0.00019178,2]
[348222956,1736399432256,-502.46246154,0.00019178,2]
[348222958,1736399432265,-504.3627612,0.00019178,2]
[348222960,1736399432274,-505.63562448,0.00019178,2]
[348222962,1736399432282,-506.98996197,0.00019178,2]
[348222964,1736399432291,-500.0,0.00019178,2]
[348222976,1736399432300,-500.0,0.00019178,2]
[348222978,1736399432405,-502.62020684,0.00019178,2]
[348222980,1736399432414,-504.72461249,0.00019178,2]
[348222982,1736399432423,-500.0,0.00019178,2]
[348222984,1736399432433,-501.76002226,0.00019178,2]
[348222986,1736399432443,-500.0,0.00019178,2]
[348222988,1736399432453,-500.0,0.00019178,2]
[348222990,1736399432462,-516.14465306,0.00019178,2]
[348222992,1736399432471,-501.61982539,0.00019178,2]
[348222994,1736399432481,-510.94855105,0.00019178,2]
[348222996,1736399432490,-503.14543164,0.00019178,2]
[348222998,1736399432499,-502.68936726,0.00019178,2]
[348223000,1736399432508,-504.54108525,0.00019178,2]
[348223002,1736399432517,-500.0,0.00019178,2]
[348223004,1736399432526,-500.0,0.00019178,2]
[348223006,1736399432535,-500.0,0.00019178,2]
[348223008,1736399432544,-500.0,0.00019178,2]
[348223009,1736399432553,-503.65882418,0.00019178,2]
[348223010,1736399432562,-500.0,0.00019178,2]
[348223012,1736399432570,-505.06936637,0.00019178,2]
[348223014,1736399432579,-568.73985305,0.00019178,2]
[348223016,1736399432589,-504.27043141,0.00019178,2]
[348223018,1736399432598,-500.0,0.00019178,2]
[348223020,1736399432607,-509.40105008,0.00019178,2]
[348223021,1736399432615,-322.73729564,0.00019178,2]
[348223023,1736399432624,-506.78660323,0.00019178,2]
[348223025,1736399432633,-500.0,0.00019178,2]
[348223028,1736399432642,-505.84745506,0.00019178,2]
[348223030,1736399432652,-500.0,0.00019178,2]
[348223032,1736399432662,-627.85748702,0.00019178,2]
[348223034,1736399432672,-500.0,0.00019178,2]
[348223036,1736399432680,-500.0,0.00019178,2]
[348223038,1736399432689,-500.0,0.00019178,2]
[348223040,1736399432698,-500.0,0.00019178,2]
[348223042,1736399432707,-508.70126107,0.00019178,2]
[348223044,1736399432716,-500.0,0.00019178,2]
[348223046,1736399432725,-504.94154063,0.00019178,2]
[348223048,1736399432734,-500.0,0.00019178,2]
[348223050,1736399432743,-500.0,0.00019178,2]
[348223053,1736399432762,-502.21946027,0.00019178,2]
[348223055,1736399432774,-496.99085582,0.00019178,2]
[348223057,1736399432784,-500.52865852,0.00019178,2]
[348223059,1736399432794,-500.0,0.00019178,2]
[348223061,1736399432803,-503.24227986,0.00019178,2]
[348223063,1736399432813,-500.0,0.00019178,2]
[348223065,1736399432823,-500.0,0.00019178,2]
[348223068,1736399432833,-427.61086415,0.00019178,2]
[348223070,1736399432843,-500.0,0.00019178,2]
[348223072,1736399432852,-504.28786932,0.00019178,2]
[348223074,1736399432862,-504.37329059,0.00019178,2]
[348223076,1736399432872,-506.25317127,0.00019178,2]
[348223078,1736399432881,-508.49794643,0.00019178,2]
[348223080,1736399432891,-502.43294846,0.00019178,2]
[348223082,1736399432902,-500.0,0.00019178,2]
[348223084,1736399432911,-500.0,0.00019178,2]
[348223086,1736399432920,-505.293763,0.00019178,2]
[348223088,1736399432930,-501.67365616,0.00019178,2]
[348223090,1736399432940,-502.00107002,0.00019178,2]
[348223092,1736399432949,-500.0,0.00019178,2]
[348223094,1736399432960,-500.0,0.00019178,2]
[348223096,1736399432969,-502.17560185,0.00019178,2]
[348223097,1736399432979,-502.58129841,0.00019178,2]
[348223098,1736399432989,-507.64799622,0.00019178,2]
[348223099,1736399433000,-500.0,0.00019178,2]
[348223100,1736399433009,-500.0,0.00019178,2]
[348223101,1736399433019,-525.18211799,0.00019178,2]
[348223102,1736399433029,-508.18536611,0.00019178,2]
[348223103,1736399433039,-73.21839346,0.00019178,2]
[348223104,1736399433054,-426.78160654,0.00019178,2]
[348223105,1736399433064,-504.61259123,0.00019178,2]
[348223106,1736399433074,-509.4491268,0.00019178,2]
[348223107,1736399433083,-500.0,0.00019178,2]
[348223108,1736399433093,-502.15681259,0.00019178,2]
[348223109,1736399433104,-500.0,0.00019178,2]
[348223110,1736399433114,-503.84084952,0.00019178,2]
[348223111,1736399433124,-503.24063659,0.00019178,2]